[Event "Titled Tuesday Blitz January 10 Late 2023"]
[White "Pham, Khoi"]
[Black "Kozak, Adam"]
[WhiteFideId "1054988"]
[BlackFideId "753246"]
[WhiteElo "2355"]
[BlackElo "2572"]
[Result "0-1"]
[Round "10"]
[TimeControl "180+2"]
[Date "2023.01.10"]
[WhiteClock "0:02:04"]
[BlackClock "0:02:11"]

1. d4 {[%clk 0:00:00]}  Nf6 {[%clk 0:00:00]} 2. c4 {[%clk 0:03:00]}  e6 {[%clk 0:02:56]} 3. Nc3 {[%clk 0:03:00]}  Bb4 {[%clk 0:02:56]} 4. Qc2 {[%clk 0:03:00]}  b6 {[%clk 0:02:56]} 5. e4 {[%clk 0:03:01]}  c5 {[%clk 0:02:56]} 6. d5 {[%clk 0:03:01]}  Qe7 {[%clk 0:02:56]} 7. e5 {[%clk 0:03:01]}  exd5 {[%clk 0:02:56]} 8. cxd5 {[%clk 0:02:45]}  Qxe5+ {[%clk 0:02:53]} 9. Be2 {[%clk 0:02:41]}  Ba6 {[%clk 0:02:53]} 10. Nf3 {[%clk 0:02:40]}  Bxc3+ {[%clk 0:02:39]} 11. bxc3 {[%clk 0:02:36]}  Qxe2+ {[%clk 0:02:37]} 12. Qxe2+ {[%clk 0:02:36]}  Bxe2 {[%clk 0:02:38]} 13. Kxe2 {[%clk 0:02:36]}  Nxd5 {[%clk 0:02:38]} 14. c4 {[%clk 0:02:37]}  Nc7 {[%clk 0:02:38]} 15. Bf4 {[%clk 0:02:36]}  Ne6 {[%clk 0:02:37]} 16. Bd6 {[%clk 0:02:36]}  Nc6 {[%clk 0:02:37]} 17. Ne5 {[%clk 0:02:36]}  Nxe5 {[%clk 0:02:37]} 18. Bxe5 {[%clk 0:02:30]}  O-O-O {[%clk 0:02:35]} 19. Rhd1 {[%clk 0:02:31]}  Rhe8 {[%clk 0:02:29]} 20. Kf1 {[%clk 0:02:31]}  d6 {[%clk 0:02:28]} 21. Bg3 {[%clk 0:02:31]}  Kc7 {[%clk 0:02:28]} 22. a4 {[%clk 0:02:31]}  a5 {[%clk 0:02:28]} 23. Rab1 {[%clk 0:02:30]}  Kc6 {[%clk 0:02:26]} 24. f3 {[%clk 0:02:29]}  Nd4 {[%clk 0:02:26]} 25. Bf2 {[%clk 0:02:28]}  Nf5 {[%clk 0:02:24]} 26. Rd3 {[%clk 0:02:26]}  Re6 {[%clk 0:02:23]} 27. g4 {[%clk 0:02:23]}  Ne7 {[%clk 0:02:20]} 28. Rbd1 {[%clk 0:02:23]}  g5 {[%clk 0:02:20]} 29. Bg3 {[%clk 0:02:22]}  f6 {[%clk 0:02:15]} 30. Rb3 {[%clk 0:02:21]}  Ng6 {[%clk 0:02:14]} 31. Rdb1 {[%clk 0:02:20]}  Rb8 {[%clk 0:02:13]} 32. Kf2 {[%clk 0:02:20]}  Ne5 {[%clk 0:02:14]} 33. Bxe5 {[%clk 0:02:18]}  Rxe5 {[%clk 0:02:14]} 34. Rd3 {[%clk 0:02:17]}  d5 {[%clk 0:02:13]} 35. cxd5+ {[%clk 0:02:16]}  Rxd5 {[%clk 0:02:13]} 36. Re3 {[%clk 0:02:15]}  Rbd8 {[%clk 0:02:14]} 37. Re6+ {[%clk 0:02:16]}  R8d6 {[%clk 0:02:15]} 38. Re8 {[%clk 0:02:15]}  Rd1 {[%clk 0:02:15]} 39. Rb2 {[%clk 0:02:15]}  R1d2+ {[%clk 0:02:13]} 40. Rxd2 {[%clk 0:02:05]}  Rxd2+ {[%clk 0:02:13]} 41. Kg3 {[%clk 0:02:05]}  Rd7 {[%clk 0:02:13]} 42. Re6+ {[%clk 0:02:06]}  Rd6 {[%clk 0:02:11]} 43. Re7 {[%clk 0:02:03]}  c4 {[%clk 0:02:11]} 44. Rxh7 {[%clk 0:02:03]}  c3 {[%clk 0:02:11]} 45. Rh8 {[%clk 0:02:04]}  Kc5 {[%clk 0:02:11]} 0-1


[Site "https://www.chess.com"]

[Event "Titled Tuesday Blitz January 10 Late 2023"]
[White "Solon, Nathan"]
[Black "Baskakov, Egor"]
[WhiteFideId "2017229"]
[BlackFideId "24197866"]
[WhiteElo "2306"]
[BlackElo "2215"]
[Result "0-1"]
[Round "10"]
[TimeControl "180+2"]
[Date "2023.01.10"]
[WhiteClock "0:00:14"]
[BlackClock "0:01:07"]

1. Nf3 {[%clk 0:00:00]}  Nf6 {[%clk 0:00:00]} 2. g3 {[%clk 0:03:00]}  e6 {[%clk 0:02:59]} 3. Bg2 {[%clk 0:03:01]}  d5 {[%clk 0:03:00]} 4. O-O {[%clk 0:03:00]}  Be7 {[%clk 0:03:01]} 5. c4 {[%clk 0:03:00]}  O-O {[%clk 0:03:01]} 6. b3 {[%clk 0:03:00]}  b6 {[%clk 0:03:02]} 7. Bb2 {[%clk 0:03:00]}  Bb7 {[%clk 0:03:02]} 8. cxd5 {[%clk 0:02:57]}  exd5 {[%clk 0:03:02]} 9. d4 {[%clk 0:02:57]}  Ne4 {[%clk 0:03:00]} 10. Nc3 {[%clk 0:02:56]}  a6 {[%clk 0:03:00]} 11. Rc1 {[%clk 0:02:53]}  f5 {[%clk 0:02:56]} 12. Ne5 {[%clk 0:02:52]}  Bd6 {[%clk 0:02:48]} 13. Nxe4 {[%clk 0:02:36]}  dxe4 {[%clk 0:02:47]} 14. Qc2 {[%clk 0:02:26]}  Qe7 {[%clk 0:02:42]} 15. f3 {[%clk 0:02:21]}  exf3 {[%clk 0:02:37]} 16. Bxf3 {[%clk 0:02:11]}  Bxf3 {[%clk 0:02:36]} 17. Rxf3 {[%clk 0:02:12]}  Nd7 {[%clk 0:02:35]} 18. Rxf5 {[%clk 0:02:12]}  Nxe5 {[%clk 0:02:20]} 19. dxe5 {[%clk 0:01:56]}  Bc5+ {[%clk 0:02:18]} 20. Kh1 {[%clk 0:01:42]}  Rxf5 {[%clk 0:02:14]} 21. Qxf5 {[%clk 0:01:42]}  Rf8 {[%clk 0:02:11]} 22. Qe4 {[%clk 0:01:43]}  Qe6 {[%clk 0:02:11]} 23. Rd1 {[%clk 0:01:43]}  Qh3 {[%clk 0:01:49]} 24. Qd5+ {[%clk 0:01:31]}  Kh8 {[%clk 0:01:34]} 25. Qg2 {[%clk 0:01:05]}  Qf5 {[%clk 0:01:33]} 26. e4 {[%clk 0:01:05]}  Qg4 {[%clk 0:01:23]} 27. Rd5 {[%clk 0:00:46]}  h6 {[%clk 0:01:21]} 28. h3 {[%clk 0:00:38]}  Qg5 {[%clk 0:01:18]} 29. h4 {[%clk 0:00:38]}  Qg4 {[%clk 0:01:16]} 30. Rd2 {[%clk 0:00:29]}  Rf3 {[%clk 0:01:11]} 31. e6 {[%clk 0:00:21]}  Rxg3 {[%clk 0:01:10]} 32. Qf1 {[%clk 0:00:14]}  Rg1+ {[%clk 0:01:07]} 0-1


[Site "https://www.chess.com"]

[Event "Titled Tuesday Blitz January 10 Late 2023"]
[White "Makarian, Rudik"]
[Black "Fiorito, Joaquin"]
[WhiteFideId "44105681"]
[BlackFideId "180173"]
[WhiteElo "2545"]
[BlackElo "2405"]
[Result "1-0"]
[Round "10"]
[TimeControl "180+2"]
[Date "2023.01.10"]
[WhiteClock "0:00:05"]
[BlackClock "0:00:03"]

1. d3 {[%clk 0:00:00]}  d5 {[%clk 0:00:00]} 2. f4 {[%clk 0:03:00]}  Nf6 {[%clk 0:03:00]} 3. Nf3 {[%clk 0:03:00]}  c5 {[%clk 0:03:00]} 4. g3 {[%clk 0:03:01]}  Nc6 {[%clk 0:03:01]} 5. Bg2 {[%clk 0:03:01]}  Bf5 {[%clk 0:03:01]} 6. O-O {[%clk 0:03:02]}  e6 {[%clk 0:02:56]} 7. Nbd2 {[%clk 0:02:58]}  Be7 {[%clk 0:02:55]} 8. e3 {[%clk 0:02:52]}  O-O {[%clk 0:02:51]} 9. b3 {[%clk 0:02:45]}  h6 {[%clk 0:02:49]} 10. Bb2 {[%clk 0:02:45]}  Rc8 {[%clk 0:02:45]} 11. Qe2 {[%clk 0:02:44]}  Nb4 {[%clk 0:02:44]} 12. Rfc1 {[%clk 0:02:42]}  a5 {[%clk 0:02:43]} 13. e4 {[%clk 0:02:40]}  Bh7 {[%clk 0:02:34]} 14. a3 {[%clk 0:02:38]}  Nc6 {[%clk 0:02:29]} 15. Ne5 {[%clk 0:02:35]}  Nd4 {[%clk 0:02:28]} 16. Qf2 {[%clk 0:02:35]}  Qb6 {[%clk 0:02:26]} 17. a4 {[%clk 0:02:28]}  Rfd8 {[%clk 0:02:04]} 18. Kh1 {[%clk 0:02:15]}  Nc6 {[%clk 0:02:01]} 19. Nxc6 {[%clk 0:02:03]}  Qxc6 {[%clk 0:01:40]} 20. e5 {[%clk 0:02:02]}  Nd7 {[%clk 0:01:41]} 21. Qe2 {[%clk 0:02:00]}  b5 {[%clk 0:01:38]} 22. axb5 {[%clk 0:01:55]}  Qxb5 {[%clk 0:01:37]} 23. c4 {[%clk 0:01:47]}  Qa6 {[%clk 0:01:37]} 24. Bc3 {[%clk 0:01:32]}  Qb7 {[%clk 0:01:31]} 25. Rxa5 {[%clk 0:01:31]}  Nb6 {[%clk 0:01:10]} 26. Rb5 {[%clk 0:01:29]}  Qc6 {[%clk 0:01:03]} 27. Ba5 {[%clk 0:01:29]}  Rb8 {[%clk 0:01:01]} 28. Nf1 {[%clk 0:01:16]}  Rd7 {[%clk 0:01:00]} 29. Ne3 {[%clk 0:01:02]}  Rdb7 {[%clk 0:00:51]} 30. Rxb6 {[%clk 0:01:00]}  Rxb6 {[%clk 0:00:46]} 31. Bxb6 {[%clk 0:00:56]}  Qxb6 {[%clk 0:00:46]} 32. cxd5 {[%clk 0:00:57]}  Qxb3 {[%clk 0:00:41]} 33. Be4 {[%clk 0:00:58]}  exd5 {[%clk 0:00:39]} 34. Nxd5 {[%clk 0:00:50]}  Bf8 {[%clk 0:00:27]} 35. Nc3 {[%clk 0:00:45]}  Rd8 {[%clk 0:00:25]} 36. Kg2 {[%clk 0:00:24]}  Qb4 {[%clk 0:00:24]} 37. Bxh7+ {[%clk 0:00:24]}  Kxh7 {[%clk 0:00:20]} 38. Qe4+ {[%clk 0:00:22]}  Qxe4+ {[%clk 0:00:21]} 39. dxe4 {[%clk 0:00:23]}  Rd2+ {[%clk 0:00:21]} 40. Kh3 {[%clk 0:00:17]}  Rd4 {[%clk 0:00:21]} 41. Kg4 {[%clk 0:00:12]}  Rc4 {[%clk 0:00:22]} 42. Kf3 {[%clk 0:00:12]}  Rb4 {[%clk 0:00:22]} 43. Rc2 {[%clk 0:00:10]}  Rb3 {[%clk 0:00:22]} 44. Ke2 {[%clk 0:00:10]}  c4 {[%clk 0:00:22]} 45. Nd5 {[%clk 0:00:10]}  Ra3 {[%clk 0:00:19]} 46. Ne3 {[%clk 0:00:11]}  c3 {[%clk 0:00:16]} 47. Nd5 {[%clk 0:00:10]}  Bc5 {[%clk 0:00:15]} 48. Kd3 {[%clk 0:00:10]}  Bg1 {[%clk 0:00:09]} 49. h3 {[%clk 0:00:09]}  Ra8 {[%clk 0:00:07]} 50. g4 {[%clk 0:00:08]}  Rd8 {[%clk 0:00:04]} 51. Rxc3 {[%clk 0:00:07]}  Ba7 {[%clk 0:00:01]} 52. Rc7 {[%clk 0:00:08]}  Bg1 {[%clk 0:00:02]} 53. Rxf7 {[%clk 0:00:08]}  Kg6 {[%clk 0:00:02]} 54. Rb7 {[%clk 0:00:09]}  Bh2 {[%clk 0:00:02]} 55. f5+ {[%clk 0:00:08]}  Kg5 {[%clk 0:00:03]} 56. Rxg7+ {[%clk 0:00:08]}  Kh4 {[%clk 0:00:03]} 57. e6 {[%clk 0:00:07]}  Kxh3 {[%clk 0:00:03]} 58. e7 {[%clk 0:00:08]}  Re8 {[%clk 0:00:03]} 59. f6 {[%clk 0:00:08]}  Be5 {[%clk 0:00:04]} 60. f7 {[%clk 0:00:09]}  Rxe7 {[%clk 0:00:04]} 61. f8=Q {[%clk 0:00:10]}  Rxg7 {[%clk 0:00:04]} 62. Qf3+ {[%clk 0:00:04]}  Kh4 {[%clk 0:00:04]} 63. Ne3 {[%clk 0:00:05]}  Rd7+ {[%clk 0:00:03]} 64. Ke2 {[%clk 0:00:05]} 1-0


[Site "https://www.chess.com"]

[Event "Titled Tuesday Blitz January 10 Late 2023"]
[White "Kazakouski, Valery"]
[Black "Djokic, Mihailo"]
[WhiteFideId "13507443"]
[BlackFideId "976440"]
[WhiteElo "2539"]
[BlackElo "2192"]
[Result "1-0"]
[Round "10"]
[TimeControl "180+2"]
[Date "2023.01.10"]
[WhiteClock "0:01:04"]
[BlackClock "0:00:28"]

1. Nf3 {[%clk 0:00:00]}  Nf6 {[%clk 0:00:00]} 2. c4 {[%clk 0:03:00]}  g6 {[%clk 0:03:00]} 3. g3 {[%clk 0:03:00]}  Bg7 {[%clk 0:03:01]} 4. Bg2 {[%clk 0:03:01]}  O-O {[%clk 0:03:01]} 5. O-O {[%clk 0:03:01]}  d6 {[%clk 0:03:02]} 6. d4 {[%clk 0:03:02]}  Nc6 {[%clk 0:03:03]} 7. Nc3 {[%clk 0:03:02]}  a6 {[%clk 0:03:02]} 8. d5 {[%clk 0:03:02]}  Na5 {[%clk 0:03:03]} 9. b3 {[%clk 0:03:03]}  c5 {[%clk 0:03:04]} 10. dxc6 {[%clk 0:03:03]}  Nxc6 {[%clk 0:03:04]} 11. Bb2 {[%clk 0:03:04]}  Bf5 {[%clk 0:03:04]} 12. Qc1 {[%clk 0:03:04]}  Rc8 {[%clk 0:03:05]} 13. Rd1 {[%clk 0:03:04]}  Re8 {[%clk 0:03:05]} 14. h3 {[%clk 0:03:04]}  Qa5 {[%clk 0:02:54]} 15. g4 {[%clk 0:03:00]}  Be6 {[%clk 0:02:45]} 16. Qg5 {[%clk 0:02:53]}  Qxg5 {[%clk 0:02:44]} 17. Nxg5 {[%clk 0:02:34]}  Bd7 {[%clk 0:02:44]} 18. Rac1 {[%clk 0:02:35]}  h5 {[%clk 0:02:38]} 19. gxh5 {[%clk 0:02:05]}  Nxh5 {[%clk 0:02:27]} 20. e3 {[%clk 0:01:48]}  b5 {[%clk 0:02:26]} 21. c5 {[%clk 0:01:45]}  Ne5 {[%clk 0:02:23]} 22. cxd6 {[%clk 0:01:41]}  b4 {[%clk 0:01:38]} 23. Nd5 {[%clk 0:01:39]}  Rxc1 {[%clk 0:01:38]} 24. Bxc1 {[%clk 0:01:33]}  exd6 {[%clk 0:01:35]} 25. Nxb4 {[%clk 0:01:33]}  a5 {[%clk 0:01:29]} 26. Nd5 {[%clk 0:01:32]}  Bc6 {[%clk 0:01:25]} 27. Ne4 {[%clk 0:01:32]}  Re6 {[%clk 0:01:12]} 28. Ba3 {[%clk 0:01:29]}  Bf8 {[%clk 0:00:44]} 29. Nec3 {[%clk 0:01:25]}  Kg7 {[%clk 0:00:39]} 30. Nc7 {[%clk 0:01:06]}  Re7 {[%clk 0:00:31]} 31. Bxd6 {[%clk 0:01:05]}  Bxg2 {[%clk 0:00:28]} 32. Kxg2 {[%clk 0:01:04]} 1-0


[Site "https://www.chess.com"]

[Event "Titled Tuesday Blitz January 10 Late 2023"]
[White "Filgueira, Hernan"]
[Black "Fernandez Guillen, Ernesto J."]
[WhiteFideId "101770"]
[BlackFideId "3512428"]
[WhiteElo "2283"]
[BlackElo "2477"]
[Result "0-1"]
[Round "10"]
[TimeControl "180+2"]
[Date "2023.01.10"]
[WhiteClock "0:00:05"]
[BlackClock "0:00:17"]

1. b3 {[%clk 0:00:00]}  Nf6 {[%clk 0:00:00]} 2. Bb2 {[%clk 0:02:58]}  e6 {[%clk 0:03:00]} 3. e3 {[%clk 0:02:57]}  b6 {[%clk 0:03:00]} 4. f4 {[%clk 0:02:56]}  Bb7 {[%clk 0:03:00]} 5. Nf3 {[%clk 0:02:56]}  Be7 {[%clk 0:03:00]} 6. Be2 {[%clk 0:02:56]}  O-O {[%clk 0:03:01]} 7. O-O {[%clk 0:02:56]}  c5 {[%clk 0:03:01]} 8. a4 {[%clk 0:02:56]}  a6 {[%clk 0:03:02]} 9. Na3 {[%clk 0:02:55]}  d5 {[%clk 0:03:01]} 10. Ne5 {[%clk 0:02:53]}  Nc6 {[%clk 0:02:58]} 11. d3 {[%clk 0:02:52]}  Qc7 {[%clk 0:02:57]} 12. Bf3 {[%clk 0:02:38]}  Rad8 {[%clk 0:02:49]} 13. Qe2 {[%clk 0:02:32]}  Bd6 {[%clk 0:02:46]} 14. Nxc6 {[%clk 0:02:30]}  Bxc6 {[%clk 0:02:44]} 15. Bxf6 {[%clk 0:02:27]}  gxf6 {[%clk 0:02:44]} 16. g3 {[%clk 0:02:27]}  f5 {[%clk 0:02:45]} 17. c4 {[%clk 0:02:22]}  Be7 {[%clk 0:02:40]} 18. Rad1 {[%clk 0:02:17]}  Bf6 {[%clk 0:02:36]} 19. e4 {[%clk 0:01:46]}  Bd4+ {[%clk 0:02:34]} 20. Kh1 {[%clk 0:01:37]}  dxe4 {[%clk 0:02:20]} 21. dxe4 {[%clk 0:01:36]}  fxe4 {[%clk 0:02:21]} 22. Bxe4 {[%clk 0:01:35]}  Qb7 {[%clk 0:02:13]} 23. Bxc6 {[%clk 0:01:34]}  Qxc6+ {[%clk 0:02:13]} 24. Qg2 {[%clk 0:01:31]}  Qxg2+ {[%clk 0:02:14]} 25. Kxg2 {[%clk 0:01:31]}  Rd6 {[%clk 0:02:06]} 26. Nc2 {[%clk 0:01:31]}  Rfd8 {[%clk 0:02:06]} 27. Kf3 {[%clk 0:01:27]}  Bc3 {[%clk 0:02:06]} 28. Ne3 {[%clk 0:01:26]}  Rd2 {[%clk 0:01:34]} 29. Rxd2 {[%clk 0:01:26]}  Rxd2 {[%clk 0:01:26]} 30. Rf2 {[%clk 0:01:25]}  Rd3 {[%clk 0:01:27]} 31. Ke2 {[%clk 0:01:14]}  Rd8 {[%clk 0:01:26]} 32. Kf3 {[%clk 0:01:07]}  Bb4 {[%clk 0:01:21]} 33. Rb2 {[%clk 0:01:04]}  Kg7 {[%clk 0:01:13]} 34. Ke2 {[%clk 0:00:48]}  f5 {[%clk 0:00:48]} 35. Nd1 {[%clk 0:00:46]}  Kf6 {[%clk 0:00:47]} 36. Nf2 {[%clk 0:00:41]}  h5 {[%clk 0:00:46]} 37. Nd3 {[%clk 0:00:40]}  Bc3 {[%clk 0:00:37]} 38. Rc2 {[%clk 0:00:40]}  Bd4 {[%clk 0:00:38]} 39. Rd2 {[%clk 0:00:39]}  Rh8 {[%clk 0:00:38]} 40. h4 {[%clk 0:00:30]}  Rg8 {[%clk 0:00:36]} 41. Kf3 {[%clk 0:00:28]}  Rg7 {[%clk 0:00:36]} 42. Re2 {[%clk 0:00:27]}  Rd7 {[%clk 0:00:35]} 43. Rd2 {[%clk 0:00:25]}  Bc3 {[%clk 0:00:35]} 44. Rd1 {[%clk 0:00:25]}  Rb7 {[%clk 0:00:35]} 45. Ke3 {[%clk 0:00:25]}  Bd4+ {[%clk 0:00:28]} 46. Kf3 {[%clk 0:00:22]}  b5 {[%clk 0:00:27]} 47. cxb5 {[%clk 0:00:22]}  axb5 {[%clk 0:00:27]} 48. a5 {[%clk 0:00:12]}  b4 {[%clk 0:00:28]} 49. a6 {[%clk 0:00:12]}  Rb5 {[%clk 0:00:19]} 50. Rd2 {[%clk 0:00:09]}  Ra5 {[%clk 0:00:18]} 51. Rc2 {[%clk 0:00:06]}  Rxa6 {[%clk 0:00:18]} 52. Nxc5 {[%clk 0:00:05]}  Ra3 {[%clk 0:00:17]} 0-1


[Site "https://www.chess.com"]

[Event "Titled Tuesday Blitz January 10 Late 2023"]
[White "Jimenez Almeida, Luis David"]
[Black "Wieczorek, Oskar"]
[WhiteFideId "22242244"]
[BlackFideId "1133950"]
[WhiteElo "2242"]
[BlackElo "2512"]
[Result "0-1"]
[Round "10"]
[TimeControl "180+2"]
[Date "2023.01.10"]
[WhiteClock "0:00:19"]
[BlackClock "0:00:56"]

1. e4 {[%clk 0:00:00]}  c5 {[%clk 0:00:00]} 2. Ne2 {[%clk 0:03:00]}  d6 {[%clk 0:02:56]} 3. d4 {[%clk 0:02:59]}  cxd4 {[%clk 0:02:51]} 4. Nxd4 {[%clk 0:02:58]}  Nf6 {[%clk 0:02:51]} 5. Nc3 {[%clk 0:02:59]}  e6 {[%clk 0:02:51]} 6. g4 {[%clk 0:02:58]}  e5 {[%clk 0:02:52]} 7. Nf5 {[%clk 0:02:56]}  h5 {[%clk 0:02:52]} 8. g5 {[%clk 0:02:56]}  Nxe4 {[%clk 0:02:51]} 9. Nxg7+ {[%clk 0:02:47]}  Bxg7 {[%clk 0:02:50]} 10. Nxe4 {[%clk 0:02:47]}  d5 {[%clk 0:02:51]} 11. Nc3 {[%clk 0:02:47]}  Be6 {[%clk 0:02:52]} 12. Bg2 {[%clk 0:02:43]}  e4 {[%clk 0:02:46]} 13. Ne2 {[%clk 0:02:41]}  Nc6 {[%clk 0:02:44]} 14. c3 {[%clk 0:02:35]}  h4 {[%clk 0:02:33]} 15. h3 {[%clk 0:02:35]}  Ne5 {[%clk 0:02:33]} 16. Nf4 {[%clk 0:02:34]}  Qxg5 {[%clk 0:02:31]} 17. Bxe4 {[%clk 0:02:31]}  dxe4 {[%clk 0:02:11]} 18. Nxe6 {[%clk 0:01:32]}  Qg2 {[%clk 0:01:42]} 19. Nxg7+ {[%clk 0:01:31]}  Ke7 {[%clk 0:01:40]} 20. Nf5+ {[%clk 0:01:30]}  Kf6 {[%clk 0:01:41]} 21. Qd6+ {[%clk 0:01:18]}  Kxf5 {[%clk 0:01:33]} 22. Rf1 {[%clk 0:00:27]}  Rad8 {[%clk 0:01:32]} 23. Qe7 {[%clk 0:00:25]}  Nf3+ {[%clk 0:01:06]} 24. Ke2 {[%clk 0:00:21]}  Qxf1+ {[%clk 0:00:57]} 25. Kxf1 {[%clk 0:00:21]}  Rd1+ {[%clk 0:00:57]} 26. Ke2 {[%clk 0:00:19]}  Re1# {[%clk 0:00:56]} 0-1


[Site "https://www.chess.com"]

[Event "Titled Tuesday Blitz January 10 Late 2023"]
[White "Bazeev, German"]
[Black "Martinez Reyes, Pedro Ramon"]
[WhiteFideId "24119350"]
[BlackFideId "3901807"]
[WhiteElo "2369"]
[BlackElo "2376"]
[Result "0-1"]
[Round "10"]
[TimeControl "180+2"]
[Date "2023.01.10"]
[WhiteClock "0:02:27"]
[BlackClock "0:00:56"]

1. d4 {[%clk 0:00:00]}  Nf6 {[%clk 0:00:00]} 2. Nf3 {[%clk 0:03:00]}  c5 {[%clk 0:02:28]} 3. d5 {[%clk 0:02:51]}  d6 {[%clk 0:02:24]} 4. c4 {[%clk 0:02:50]}  b5 {[%clk 0:02:16]} 5. Qc2 {[%clk 0:02:51]}  g6 {[%clk 0:02:16]} 6. h3 {[%clk 0:02:48]}  Bg7 {[%clk 0:02:12]} 7. e4 {[%clk 0:02:48]}  bxc4 {[%clk 0:02:11]} 8. Bxc4 {[%clk 0:02:47]}  O-O {[%clk 0:02:05]} 9. O-O {[%clk 0:02:47]}  Nfd7 {[%clk 0:02:05]} 10. Re1 {[%clk 0:02:47]}  Nb6 {[%clk 0:02:04]} 11. Bf1 {[%clk 0:02:47]}  Ba6 {[%clk 0:02:04]} 12. Bxa6 {[%clk 0:02:45]}  Nxa6 {[%clk 0:02:02]} 13. a3 {[%clk 0:02:38]}  c4 {[%clk 0:02:03]} 14. Be3 {[%clk 0:02:38]}  Rc8 {[%clk 0:02:01]} 15. Nc3 {[%clk 0:02:37]}  Nc5 {[%clk 0:01:56]} 16. Bxc5 {[%clk 0:02:36]}  Rxc5 {[%clk 0:01:56]} 17. Rad1 {[%clk 0:02:37]}  Qc7 {[%clk 0:01:55]} 18. Nd4 {[%clk 0:02:38]}  Bxd4 {[%clk 0:01:51]} 19. Rxd4 {[%clk 0:02:37]}  Rb8 {[%clk 0:01:42]} 20. Qd2 {[%clk 0:02:38]}  Nd7 {[%clk 0:01:34]} 21. Qh6 {[%clk 0:02:33]}  Rxb2 {[%clk 0:01:24]} 22. e5 {[%clk 0:02:32]}  dxe5 {[%clk 0:01:17]} 23. Rh4 {[%clk 0:02:32]}  Nf8 {[%clk 0:01:05]} 24. Ne4 {[%clk 0:02:31]}  Rxd5 {[%clk 0:01:04]} 25. Ng5 {[%clk 0:02:32]}  Qb6 {[%clk 0:00:59]} 26. Rf1 {[%clk 0:02:32]}  Rd1 {[%clk 0:00:57]} 27. Nxh7 {[%clk 0:02:27]}  Qxf2+ {[%clk 0:00:56]} 0-1


[Site "https://www.chess.com"]

[Event "Titled Tuesday Blitz January 10 Late 2023"]
[White "Makridis, Dimitrios"]
[Black "Tologon tegin, Semetei"]
[WhiteFideId "25864475"]
[BlackFideId "13800574"]
[WhiteElo "2356"]
[BlackElo "2372"]
[Result "1-0"]
[Round "10"]
[TimeControl "180+2"]
[Date "2023.01.10"]
[WhiteClock "0:02:19"]
[BlackClock "0:01:07"]

1. e4 {[%clk 0:00:00]}  c6 {[%clk 0:00:00]} 2. d4 {[%clk 0:03:00]}  d5 {[%clk 0:02:54]} 3. exd5 {[%clk 0:03:00]}  cxd5 {[%clk 0:02:55]} 4. Bd3 {[%clk 0:03:01]}  Nf6 {[%clk 0:02:55]} 5. h3 {[%clk 0:03:02]}  Nc6 {[%clk 0:02:54]} 6. c3 {[%clk 0:03:02]}  g6 {[%clk 0:02:54]} 7. Nf3 {[%clk 0:03:02]}  Bf5 {[%clk 0:02:54]} 8. Ne5 {[%clk 0:03:03]}  Bg7 {[%clk 0:02:53]} 9. Bxf5 {[%clk 0:03:03]}  gxf5 {[%clk 0:02:52]} 10. Nd3 {[%clk 0:03:03]}  e6 {[%clk 0:02:52]} 11. Bf4 {[%clk 0:03:04]}  O-O {[%clk 0:02:49]} 12. O-O {[%clk 0:03:00]}  Ne4 {[%clk 0:02:44]} 13. Nd2 {[%clk 0:02:59]}  Rc8 {[%clk 0:02:42]} 14. f3 {[%clk 0:02:57]}  Nxd2 {[%clk 0:02:41]} 15. Qxd2 {[%clk 0:02:57]}  Kh8 {[%clk 0:02:35]} 16. g4 {[%clk 0:02:58]}  Rg8 {[%clk 0:02:24]} 17. Kh2 {[%clk 0:02:54]}  fxg4 {[%clk 0:02:17]} 18. fxg4 {[%clk 0:02:53]}  Qe7 {[%clk 0:02:07]} 19. Rae1 {[%clk 0:02:53]}  Rcf8 {[%clk 0:01:59]} 20. Bg5 {[%clk 0:02:51]}  f6 {[%clk 0:01:59]} 21. Bh4 {[%clk 0:02:48]}  b6 {[%clk 0:01:58]} 22. Nf4 {[%clk 0:02:47]}  Bh6 {[%clk 0:01:49]} 23. Bg3 {[%clk 0:02:42]}  Qd7 {[%clk 0:01:45]} 24. Qg2 {[%clk 0:02:36]}  Re8 {[%clk 0:01:42]} 25. Nh5 {[%clk 0:02:31]}  f5 {[%clk 0:01:36]} 26. Nf6 {[%clk 0:02:28]}  Qf7 {[%clk 0:01:21]} 27. Nxe8 {[%clk 0:02:26]}  Qxe8 {[%clk 0:01:19]} 28. Rxf5 {[%clk 0:02:24]}  exf5 {[%clk 0:01:18]} 29. Rxe8 {[%clk 0:02:21]}  Rxe8 {[%clk 0:01:14]} 30. Qxd5 {[%clk 0:02:20]}  Re2+ {[%clk 0:01:15]} 31. Kh1 {[%clk 0:02:19]}  f4 {[%clk 0:01:10]} 32. Qxc6 {[%clk 0:02:19]}  fxg3 {[%clk 0:01:07]} 33. Qxh6 {[%clk 0:02:19]} 1-0


[Site "https://www.chess.com"]

[Event "Titled Tuesday Blitz January 10 Late 2023"]
[White "Andreev, Eduard"]
[Black "Domingo Nunez, Ruben"]
[WhiteFideId "14103400"]
[BlackFideId "22245570"]
[WhiteElo "2413"]
[BlackElo "2416"]
[Result "0-1"]
[Round "10"]
[TimeControl "180+2"]
[Date "2023.01.10"]
[WhiteClock "0:00:02"]
[BlackClock "0:00:44"]

1. e4 {[%clk 0:00:00]}  g6 {[%clk 0:00:00]} 2. d4 {[%clk 0:03:00]}  Bg7 {[%clk 0:02:59]} 3. Nc3 {[%clk 0:02:59]}  c6 {[%clk 0:03:00]} 4. f4 {[%clk 0:02:55]}  d5 {[%clk 0:03:00]} 5. e5 {[%clk 0:02:52]}  f6 {[%clk 0:03:00]} 6. Nf3 {[%clk 0:02:50]}  Nh6 {[%clk 0:03:01]} 7. Be3 {[%clk 0:02:44]}  O-O {[%clk 0:03:01]} 8. Qd2 {[%clk 0:02:27]}  Bg4 {[%clk 0:02:59]} 9. Be2 {[%clk 0:02:21]}  Nf5 {[%clk 0:02:59]} 10. Bf2 {[%clk 0:02:20]}  Bxf3 {[%clk 0:02:57]} 11. Bxf3 {[%clk 0:02:19]}  fxe5 {[%clk 0:02:57]} 12. dxe5 {[%clk 0:02:17]}  e6 {[%clk 0:02:58]} 13. O-O-O {[%clk 0:02:07]}  Nd7 {[%clk 0:02:58]} 14. Kb1 {[%clk 0:02:05]}  Qe7 {[%clk 0:02:54]} 15. h4 {[%clk 0:02:04]}  Bh6 {[%clk 0:02:43]} 16. h5 {[%clk 0:01:54]}  g5 {[%clk 0:02:18]} 17. g4 {[%clk 0:01:48]}  Ng7 {[%clk 0:02:18]} 18. Ne2 {[%clk 0:01:32]}  Nxe5 {[%clk 0:02:17]} 19. fxe5 {[%clk 0:01:27]}  Rxf3 {[%clk 0:02:07]} 20. Be3 {[%clk 0:01:25]}  Raf8 {[%clk 0:02:08]} 21. Bxa7 {[%clk 0:01:17]}  Ne8 {[%clk 0:02:05]} 22. Nc1 {[%clk 0:01:05]}  Nc7 {[%clk 0:02:00]} 23. Nd3 {[%clk 0:00:54]}  Nb5 {[%clk 0:01:54]} 24. Bc5 {[%clk 0:00:48]}  Qg7 {[%clk 0:01:44]} 25. Bxf8 {[%clk 0:00:47]}  Qxf8 {[%clk 0:01:43]} 26. Qg2 {[%clk 0:00:47]}  Nd4 {[%clk 0:01:44]} 27. Rhf1 {[%clk 0:00:43]}  Rxf1 {[%clk 0:01:27]} 28. Rxf1 {[%clk 0:00:42]}  Qe7 {[%clk 0:01:26]} 29. Qf2 {[%clk 0:00:43]}  Nb5 {[%clk 0:01:21]} 30. Qf6 {[%clk 0:00:42]}  Bf8 {[%clk 0:01:22]} 31. a4 {[%clk 0:00:41]}  Nd4 {[%clk 0:01:20]} 32. Qf2 {[%clk 0:00:27]}  c5 {[%clk 0:01:19]} 33. Nc1 {[%clk 0:00:23]}  Nc6 {[%clk 0:01:19]} 34. Nd3 {[%clk 0:00:17]}  b6 {[%clk 0:01:18]} 35. Qe3 {[%clk 0:00:14]}  Bg7 {[%clk 0:01:13]} 36. h6 {[%clk 0:00:11]}  Bxh6 {[%clk 0:01:07]} 37. b4 {[%clk 0:00:02]}  Bf8 {[%clk 0:01:07]} 38. bxc5 {[%clk 0:00:01]}  bxc5 {[%clk 0:01:00]} 39. Nb2 {[%clk 0:00:01]}  c4 {[%clk 0:01:01]} 40. Qc3 {[%clk 0:00:01]}  Qb7 {[%clk 0:01:00]} 41. Re1 {[%clk 0:00:01]}  Bb4 {[%clk 0:00:53]} 42. Qg3 {[%clk 0:00:01]}  Bxe1 {[%clk 0:00:53]} 43. Qxe1 {[%clk 0:00:01]}  d4 {[%clk 0:00:45]} 44. Kc1 {[%clk 0:00:02]}  c3 {[%clk 0:00:45]} 45. Nd3 {[%clk 0:00:02]}  Nb4 {[%clk 0:00:46]} 46. Qe2 {[%clk 0:00:02]}  Na2+ {[%clk 0:00:44]} 47. Kd1 {[%clk 0:00:01]}  Qb1+ {[%clk 0:00:44]} 48. Nc1 {[%clk 0:00:02]}  Qxc1# {[%clk 0:00:44]} 0-1


[Site "https://www.chess.com"]